[Event "Titled Tuesday Blitz February 22 Early 2022"]
[White "Melian, Juan Sebastian"]
[Black "Petrosyan, Manuel"]
[WhiteFideId "3706575"]
[BlackFideId "13300857"]
[WhiteElo "1842"]
[BlackElo "2592"]
[Result "1-0"]
[Round "10"]
[TimeControl "180+1"]
[Date "2022.02.22"]
[WhiteClock "0:00:08"]
[BlackClock "0:00:04"]

1. e4 {[%clk 0:03:00]}  c5 {[%clk 0:02:58]} 2. b3 {[%clk 0:03:00]}  Nc6 {[%clk 0:02:57]} 3. Bb2 {[%clk 0:03:00]}  d6 {[%clk 0:02:54]} 4. Bb5 {[%clk 0:02:59]}  e5 {[%clk 0:02:53]} 5. d3 {[%clk 0:02:59]}  Ne7 {[%clk 0:02:51]} 6. Nd2 {[%clk 0:02:56]}  a6 {[%clk 0:02:44]} 7. Bxc6+ {[%clk 0:02:56]}  Nxc6 {[%clk 0:02:45]} 8. Ne2 {[%clk 0:02:57]}  g5 {[%clk 0:02:38]} 9. Ng3 {[%clk 0:02:53]}  Bg7 {[%clk 0:02:25]} 10. Qh5 {[%clk 0:02:45]}  Qf6 {[%clk 0:01:57]} 11. Nc4 {[%clk 0:02:35]}  Ne7 {[%clk 0:01:24]} 12. Bc1 {[%clk 0:02:03]}  h6 {[%clk 0:01:22]} 13. h4 {[%clk 0:01:42]}  gxh4 {[%clk 0:01:03]} 14. Qxh4 {[%clk 0:01:40]}  Qxh4 {[%clk 0:00:55]} 15. Rxh4 {[%clk 0:01:41]}  Ng6 {[%clk 0:00:45]} 16. Rh5 {[%clk 0:01:19]}  Bg4 {[%clk 0:00:42]} 17. Rh1 {[%clk 0:00:52]}  O-O-O {[%clk 0:00:34]} 18. f3 {[%clk 0:00:46]}  Be6 {[%clk 0:00:32]} 19. Ne3 {[%clk 0:00:42]}  Ne7 {[%clk 0:00:30]} 20. c4 {[%clk 0:00:38]}  Bf6 {[%clk 0:00:16]} 21. Nd5 {[%clk 0:00:24]}  Bxd5 {[%clk 0:00:12]} 22. cxd5 {[%clk 0:00:23]}  Bg5 {[%clk 0:00:11]} 23. Kf2 {[%clk 0:00:21]}  Rdf8 {[%clk 0:00:08]} 24. Rh5 {[%clk 0:00:19]}  f5 {[%clk 0:00:06]} 25. Bxg5 {[%clk 0:00:16]}  hxg5 {[%clk 0:00:07]} 26. Rah1 {[%clk 0:00:17]}  Rhg8 {[%clk 0:00:06]} 27. Rh7 {[%clk 0:00:16]}  Kd8 {[%clk 0:00:02]} 28. Nh5 {[%clk 0:00:12]}  g4 {[%clk 0:00:01]} 29. Ng7 {[%clk 0:00:11]}  Kc8 {[%clk 0:00:02]} 30. Ne6 {[%clk 0:00:11]}  Re8 {[%clk 0:00:02]} 31. Rf7 {[%clk 0:00:10]}  g3+ {[%clk 0:00:03]} 32. Ke3 {[%clk 0:00:09]}  fxe4 {[%clk 0:00:04]} 33. dxe4 {[%clk 0:00:09]}  Ng6 {[%clk 0:00:03]} 34. Rhh7 {[%clk 0:00:09]}  Nf4 {[%clk 0:00:03]} 35. Nxf4 {[%clk 0:00:08]}  exf4+ {[%clk 0:00:04]} 36. Kxf4 {[%clk 0:00:07]}  b5 {[%clk 0:00:04]} 37. Rc7+ {[%clk 0:00:07]}  Kb8 {[%clk 0:00:05]} 38. Rb7+ {[%clk 0:00:08]}  Kc8 {[%clk 0:00:05]} 39. Ra7 {[%clk 0:00:08]}  Kb8 {[%clk 0:00:06]} 40. Rxa6 {[%clk 0:00:09]}  Ref8+ {[%clk 0:00:05]} 41. Ke3 {[%clk 0:00:09]}  Rf6 {[%clk 0:00:03]} 42. Rb6+ {[%clk 0:00:09]}  Kc8 {[%clk 0:00:03]} 43. Rc6+ {[%clk 0:00:09]}  Kb8 {[%clk 0:00:02]} 44. Rd7 {[%clk 0:00:09]}  Rh6 {[%clk 0:00:02]} 45. Rdxd6 {[%clk 0:00:08]}  Rh2 {[%clk 0:00:03]} 46. Rb6+ {[%clk 0:00:07]}  Ka7 {[%clk 0:00:03]} 47. Ra6+ {[%clk 0:00:08]}  Kb7 {[%clk 0:00:03]} 48. Rdb6+ {[%clk 0:00:08]}  Kc7 {[%clk 0:00:04]} 49. Rg6 {[%clk 0:00:08]}  Rxg6 {[%clk 0:00:03]} 50. Rxg6 {[%clk 0:00:09]}  Rxg2 {[%clk 0:00:04]} 51. Kf4 {[%clk 0:00:06]}  c4 {[%clk 0:00:04]} 52. bxc4 {[%clk 0:00:06]}  bxc4 {[%clk 0:00:05]} 53. Rc6+ {[%clk 0:00:06]}  Kd7 {[%clk 0:00:06]} 54. Rxc4 {[%clk 0:00:07]}  Rg1 {[%clk 0:00:06]} 55. Rc6 {[%clk 0:00:05]}  g2 {[%clk 0:00:07]} 56. Rg6 {[%clk 0:00:06]}  Ke7 {[%clk 0:00:07]} 57. Ke3 {[%clk 0:00:06]}  Kf7 {[%clk 0:00:07]} 58. Rg3 {[%clk 0:00:05]}  Re1+ {[%clk 0:00:06]} 59. Kf2 {[%clk 0:00:06]}  Ra1 {[%clk 0:00:06]} 60. Rxg2 {[%clk 0:00:06]}  Rxa2+ {[%clk 0:00:07]} 61. Kg3 {[%clk 0:00:07]}  Ra6 {[%clk 0:00:07]} 62. Kf4 {[%clk 0:00:07]}  Rf6+ {[%clk 0:00:07]} 63. Ke3 {[%clk 0:00:07]}  Ra6 {[%clk 0:00:07]} 64. Rg4 {[%clk 0:00:07]}  Kf6 {[%clk 0:00:08]} 65. Rh4 {[%clk 0:00:07]}  Ra3+ {[%clk 0:00:06]} 66. Kf4 {[%clk 0:00:07]}  Kg6 {[%clk 0:00:06]} 67. Rg4+ {[%clk 0:00:08]}  Kf6 {[%clk 0:00:07]} 68. Rg5 {[%clk 0:00:08]}  Rd3 {[%clk 0:00:06]} 69. Rf5+ {[%clk 0:00:08]}  Ke7 {[%clk 0:00:06]} 70. Ke5 {[%clk 0:00:07]}  Ra3 {[%clk 0:00:06]} 71. f4 {[%clk 0:00:08]}  Ra6 {[%clk 0:00:06]} 72. Rh5 {[%clk 0:00:08]}  Ke8 {[%clk 0:00:06]} 73. Rh7 {[%clk 0:00:08]}  Rg6 {[%clk 0:00:05]} 74. f5 {[%clk 0:00:08]}  Ra6 {[%clk 0:00:05]} 75. Rh5 {[%clk 0:00:07]}  Kf7 {[%clk 0:00:05]} 76. Rg5 {[%clk 0:00:07]}  Rh6 {[%clk 0:00:04]} 77. Rg6 {[%clk 0:00:07]}  Rh1 {[%clk 0:00:04]} 78. Rb6 {[%clk 0:00:08]}  Ra1 {[%clk 0:00:03]} 79. Rb7+ {[%clk 0:00:08]}  Ke8 {[%clk 0:00:04]} 80. Ke6 {[%clk 0:00:08]}  Ra4 {[%clk 0:00:04]} 81. Rb8# {[%clk 0:00:08]} 1-0


[Site "https://www.chess.com"]

[Event "Titled Tuesday Blitz February 22 Early 2022"]
[White "Mikhailovsky, Vladimir"]
[Black "Voege, Tobias"]
[WhiteFideId "34105414"]
[BlackFideId "1270513"]
[WhiteElo "2371"]
[BlackElo "2335"]
[Result "1-0"]
[Round "10"]
[TimeControl "180+1"]
[Date "2022.02.22"]
[WhiteClock "0:00:37"]
[BlackClock "0:00:51"]

1. e4 {[%clk 0:03:00]}  e6 {[%clk 0:02:58]} 2. d4 {[%clk 0:02:57]}  d5 {[%clk 0:02:58]} 3. Nc3 {[%clk 0:02:58]}  Nf6 {[%clk 0:02:58]} 4. Bg5 {[%clk 0:02:56]}  Be7 {[%clk 0:02:58]} 5. Bxf6 {[%clk 0:02:54]}  Bxf6 {[%clk 0:02:57]} 6. Nf3 {[%clk 0:02:55]}  dxe4 {[%clk 0:02:51]} 7. Nxe4 {[%clk 0:02:55]}  Be7 {[%clk 0:02:51]} 8. Bd3 {[%clk 0:02:55]}  b6 {[%clk 0:02:51]} 9. Qe2 {[%clk 0:02:51]}  Bb7 {[%clk 0:02:50]} 10. O-O-O {[%clk 0:02:51]}  Nc6 {[%clk 0:02:50]} 11. Kb1 {[%clk 0:02:49]}  O-O {[%clk 0:02:43]} 12. h4 {[%clk 0:02:45]}  Qd5 {[%clk 0:02:23]} 13. Neg5 {[%clk 0:02:32]}  h6 {[%clk 0:02:19]} 14. Bh7+ {[%clk 0:02:32]}  Kh8 {[%clk 0:02:18]} 15. Be4 {[%clk 0:02:33]}  Qa5 {[%clk 0:01:56]} 16. Bxc6 {[%clk 0:02:06]}  Bxc6 {[%clk 0:01:53]} 17. Ne5 {[%clk 0:02:07]}  Be8 {[%clk 0:01:53]} 18. Qe4 {[%clk 0:02:04]}  Bxg5 {[%clk 0:01:41]} 19. hxg5 {[%clk 0:01:52]}  Rd8 {[%clk 0:01:37]} 20. Qf4 {[%clk 0:01:03]}  Qb4 {[%clk 0:00:53]} 21. gxh6 {[%clk 0:00:37]}  g6 {[%clk 0:00:51]} 22. Qf6+ {[%clk 0:00:37]}  Kh7 {[%clk 0:00:51]} 23. Qg7# {[%clk 0:00:37]} 1-0


[Site "https://www.chess.com"]

[Event "Titled Tuesday Blitz February 22 Early 2022"]
[White "Mohammadian, Mohammad"]
[Black "Kaplan, Ebru"]
[WhiteFideId "12566055"]
[BlackFideId "6315194"]
[WhiteElo "1543"]
[BlackElo "1941"]
[Result "0-1"]
[Round "10"]
[TimeControl "180+1"]
[Date "2022.02.22"]
[WhiteClock "0:00:01"]
[BlackClock "0:00:03"]

1. e4 {[%clk 0:03:00]}  c5 {[%clk 0:03:00]} 2. Nf3 {[%clk 0:03:00]}  d6 {[%clk 0:03:00]} 3. d4 {[%clk 0:03:00]}  cxd4 {[%clk 0:03:00]} 4. Nxd4 {[%clk 0:03:00]}  Nf6 {[%clk 0:03:01]} 5. Nc3 {[%clk 0:02:59]}  a6 {[%clk 0:03:02]} 6. Be2 {[%clk 0:02:58]}  e6 {[%clk 0:03:01]} 7. Be3 {[%clk 0:02:58]}  b5 {[%clk 0:02:51]} 8. a3 {[%clk 0:02:57]}  Bb7 {[%clk 0:02:50]} 9. f3 {[%clk 0:02:56]}  Nbd7 {[%clk 0:02:38]} 10. O-O {[%clk 0:02:55]}  Be7 {[%clk 0:02:38]} 11. Qe1 {[%clk 0:02:53]}  Rc8 {[%clk 0:02:33]} 12. Qg3 {[%clk 0:02:49]}  O-O {[%clk 0:02:33]} 13. Rad1 {[%clk 0:02:36]}  Qc7 {[%clk 0:02:26]} 14. Rd2 {[%clk 0:02:30]}  d5 {[%clk 0:02:26]} 15. Qxc7 {[%clk 0:02:23]}  Rxc7 {[%clk 0:02:27]} 16. exd5 {[%clk 0:02:23]}  Nxd5 {[%clk 0:02:27]} 17. Nxd5 {[%clk 0:02:22]}  Bxd5 {[%clk 0:02:28]} 18. c3 {[%clk 0:02:20]}  Ne5 {[%clk 0:02:10]} 19. Rfd1 {[%clk 0:02:16]}  Nc4 {[%clk 0:01:51]} 20. Bxc4 {[%clk 0:02:16]}  Rxc4 {[%clk 0:01:51]} 21. Kf1 {[%clk 0:02:10]}  h6 {[%clk 0:01:50]} 22. Bf2 {[%clk 0:02:07]}  Rb8 {[%clk 0:01:40]} 23. Kg1 {[%clk 0:01:58]}  a5 {[%clk 0:01:40]} 24. Rd3 {[%clk 0:01:47]}  g6 {[%clk 0:01:17]} 25. b3 {[%clk 0:01:46]}  Rcc8 {[%clk 0:01:12]} 26. Rb1 {[%clk 0:01:38]}  Bxa3 {[%clk 0:01:08]} 27. b4 {[%clk 0:01:30]}  axb4 {[%clk 0:01:00]} 28. cxb4 {[%clk 0:01:28]}  Rc1+ {[%clk 0:01:00]} 29. Rxc1 {[%clk 0:01:26]}  Bxc1 {[%clk 0:01:01]} 30. Rd1 {[%clk 0:01:14]}  Ba3 {[%clk 0:00:53]} 31. Rb1 {[%clk 0:01:12]}  Rc8 {[%clk 0:00:32]} 32. Nxb5 {[%clk 0:01:10]}  Rc1+ {[%clk 0:00:30]} 33. Rxc1 {[%clk 0:01:09]}  Bxc1 {[%clk 0:00:31]} 34. Nd6 {[%clk 0:01:06]}  Ba3 {[%clk 0:00:26]} 35. Bc5 {[%clk 0:01:05]}  Kg7 {[%clk 0:00:25]} 36. Nb5 {[%clk 0:01:04]}  Bb2 {[%clk 0:00:22]} 37. Kf2 {[%clk 0:01:03]}  Kf6 {[%clk 0:00:20]} 38. Bd4+ {[%clk 0:00:59]}  Bxd4+ {[%clk 0:00:20]} 39. Nxd4 {[%clk 0:00:59]}  Ke5 {[%clk 0:00:20]} 40. Nc2 {[%clk 0:00:53]}  Kd6 {[%clk 0:00:19]} 41. Ke3 {[%clk 0:00:52]}  Kc6 {[%clk 0:00:19]} 42. Kd3 {[%clk 0:00:46]}  Kb5 {[%clk 0:00:19]} 43. Kc3 {[%clk 0:00:45]}  e5 {[%clk 0:00:19]} 44. h4 {[%clk 0:00:43]}  f5 {[%clk 0:00:16]} 45. Ne3 {[%clk 0:00:40]}  Be6 {[%clk 0:00:14]} 46. Nc2 {[%clk 0:00:35]}  g5 {[%clk 0:00:12]} 47. hxg5 {[%clk 0:00:34]}  hxg5 {[%clk 0:00:13]} 48. Na3+ {[%clk 0:00:34]}  Kb6 {[%clk 0:00:11]} 49. Nc2 {[%clk 0:00:30]}  Kc6 {[%clk 0:00:09]} 50. Ne3 {[%clk 0:00:30]}  Kd6 {[%clk 0:00:06]} 51. Nf1 {[%clk 0:00:28]}  e4 {[%clk 0:00:05]} 52. fxe4 {[%clk 0:00:28]}  Ke5 {[%clk 0:00:06]} 53. g3 {[%clk 0:00:27]}  fxe4 {[%clk 0:00:07]} 54. Ne3 {[%clk 0:00:20]}  Bf7 {[%clk 0:00:06]} 55. b5 {[%clk 0:00:17]}  Be8 {[%clk 0:00:05]} 56. Kb4 {[%clk 0:00:17]}  Kd4 {[%clk 0:00:04]} 57. Ng4 {[%clk 0:00:10]}  e3 {[%clk 0:00:04]} 58. Nxe3 {[%clk 0:00:07]}  Kxe3 {[%clk 0:00:04]} 59. b6 {[%clk 0:00:07]}  Bc6 {[%clk 0:00:04]} 60. Kc5 {[%clk 0:00:07]}  Be4 {[%clk 0:00:04]} 61. Kd6 {[%clk 0:00:03]}  Kf3 {[%clk 0:00:03]} 62. Ke5 {[%clk 0:00:03]}  Bb7 {[%clk 0:00:03]} 63. Kf5 {[%clk 0:00:01]}  g4 {[%clk 0:00:03]} 0-1


[Site "https://www.chess.com"]

[Event "Titled Tuesday Blitz February 22 Early 2022"]
[White "Moroni, Luca Jr"]
[Black "Bortnyk, Olexandr"]
[WhiteFideId "865834"]
[BlackFideId "14120828"]
[WhiteElo "2573"]
[BlackElo "2723"]
[Result "1/2-1/2"]
[Round "10"]
[TimeControl "180+1"]
[Date "2022.02.22"]
[WhiteClock "0:00:14"]
[BlackClock "0:00:14"]

1. d4 {[%clk 0:02:50]}  f5 {[%clk 0:02:59]} 2. g3 {[%clk 0:02:49]}  Nf6 {[%clk 0:02:59]} 3. Bg2 {[%clk 0:02:50]}  d6 {[%clk 0:02:59]} 4. Nf3 {[%clk 0:02:50]}  g6 {[%clk 0:03:00]} 5. b3 {[%clk 0:02:50]}  Bg7 {[%clk 0:03:00]} 6. Bb2 {[%clk 0:02:51]}  c6 {[%clk 0:03:00]} 7. O-O {[%clk 0:02:51]}  O-O {[%clk 0:03:01]} 8. c4 {[%clk 0:02:52]}  Na6 {[%clk 0:02:43]} 9. a3 {[%clk 0:02:51]}  Nc7 {[%clk 0:02:31]} 10. Nbd2 {[%clk 0:02:48]}  Ne4 {[%clk 0:02:26]} 11. e3 {[%clk 0:02:48]}  a5 {[%clk 0:01:53]} 12. Qc2 {[%clk 0:02:48]}  d5 {[%clk 0:01:50]} 13. b4 {[%clk 0:02:45]}  Ne6 {[%clk 0:01:42]} 14. Nb3 {[%clk 0:02:21]}  axb4 {[%clk 0:01:35]} 15. axb4 {[%clk 0:02:21]}  Rxa1 {[%clk 0:01:36]} 16. Rxa1 {[%clk 0:02:20]}  Qb6 {[%clk 0:01:37]} 17. cxd5 {[%clk 0:01:58]}  cxd5 {[%clk 0:01:38]} 18. Nc5 {[%clk 0:01:41]}  Qxb4 {[%clk 0:01:32]} 19. Ba3 {[%clk 0:01:39]}  Qc4 {[%clk 0:01:24]} 20. Qxc4 {[%clk 0:01:30]}  dxc4 {[%clk 0:01:25]} 21. Nxe4 {[%clk 0:01:28]}  fxe4 {[%clk 0:01:23]} 22. Nd2 {[%clk 0:01:28]}  Nxd4 {[%clk 0:00:51]} 23. exd4 {[%clk 0:01:22]}  Bxd4 {[%clk 0:00:52]} 24. Rf1 {[%clk 0:01:20]}  Rxf2 {[%clk 0:00:53]} 25. Rxf2 {[%clk 0:01:18]}  e3 {[%clk 0:00:53]} 26. Ne4 {[%clk 0:00:52]}  Bg4 {[%clk 0:00:07]} 27. Bxe7 {[%clk 0:00:37]}  c3 {[%clk 0:00:06]} 28. Bc5 {[%clk 0:00:21]}  exf2+ {[%clk 0:00:04]} 29. Kf1 {[%clk 0:00:21]}  c2 {[%clk 0:00:02]} 30. Ba3 {[%clk 0:00:17]}  Be6 {[%clk 0:00:01]} 31. Nxf2 {[%clk 0:00:13]}  Bc4+ {[%clk 0:00:01]} 32. Kg1 {[%clk 0:00:13]}  Be3 {[%clk 0:00:02]} 33. Bxb7 {[%clk 0:00:11]}  Kf7 {[%clk 0:00:02]} 34. Kg2 {[%clk 0:00:09]}  c1=Q {[%clk 0:00:03]} 35. Bxc1 {[%clk 0:00:09]}  Bxc1 {[%clk 0:00:03]} 36. Bf3 {[%clk 0:00:09]}  Bb2 {[%clk 0:00:04]} 37. Ne4 {[%clk 0:00:09]}  Kg7 {[%clk 0:00:04]} 38. Nd6 {[%clk 0:00:09]}  Be6 {[%clk 0:00:04]} 39. Ne4 {[%clk 0:00:09]}  Be5 {[%clk 0:00:05]} 40. Nc5 {[%clk 0:00:10]}  Bf5 {[%clk 0:00:05]} 41. Be4 {[%clk 0:00:10]}  Bc8 {[%clk 0:00:05]} 42. Nd3 {[%clk 0:00:08]}  Bd6 {[%clk 0:00:05]} 43. Bf3 {[%clk 0:00:09]}  Kf6 {[%clk 0:00:04]} 44. h4 {[%clk 0:00:09]}  h6 {[%clk 0:00:04]} 45. Nf2 {[%clk 0:00:09]}  Kg7 {[%clk 0:00:04]} 46. Ne4 {[%clk 0:00:09]}  Be7 {[%clk 0:00:04]} 47. Nf2 {[%clk 0:00:10]}  Ba6 {[%clk 0:00:05]} 48. Ne4 {[%clk 0:00:10]}  Bb5 {[%clk 0:00:05]} 49. Nf2 {[%clk 0:00:11]}  Kf6 {[%clk 0:00:05]} 50. Ng4+ {[%clk 0:00:11]}  Kg7 {[%clk 0:00:05]} 51. Nf2 {[%clk 0:00:11]}  Ba4 {[%clk 0:00:04]} 52. Ne4 {[%clk 0:00:11]}  Bd7 {[%clk 0:00:04]} 53. Nf2 {[%clk 0:00:12]}  Be6 {[%clk 0:00:04]} 54. Bg4 {[%clk 0:00:11]}  Bd5+ {[%clk 0:00:04]} 55. Bf3 {[%clk 0:00:12]}  Ba2 {[%clk 0:00:05]} 56. Ne4 {[%clk 0:00:12]}  Bd8 {[%clk 0:00:05]} 57. Nf2 {[%clk 0:00:12]}  Bg8 {[%clk 0:00:04]} 58. Ne4 {[%clk 0:00:12]}  Be6 {[%clk 0:00:05]} 59. Nf2 {[%clk 0:00:12]}  Kf6 {[%clk 0:00:05]} 60. Ne4+ {[%clk 0:00:13]}  Ke5 {[%clk 0:00:05]} 61. Nf2 {[%clk 0:00:13]}  Kd4 {[%clk 0:00:04]} 62. Ng4 {[%clk 0:00:10]}  h5 {[%clk 0:00:05]} 63. Nf2 {[%clk 0:00:10]}  Bf5 {[%clk 0:00:05]} 64. Nh3 {[%clk 0:00:03]}  Ke3 {[%clk 0:00:04]} 65. Nf2 {[%clk 0:00:04]}  Bc7 {[%clk 0:00:02]} 66. Nd1+ {[%clk 0:00:03]}  Kd2 {[%clk 0:00:02]} 67. Nf2 {[%clk 0:00:03]}  Bd8 {[%clk 0:00:03]} 68. Ne4+ {[%clk 0:00:03]}  Ke3 {[%clk 0:00:03]} 69. Nd6 {[%clk 0:00:04]}  Be6 {[%clk 0:00:03]} 70. Ne4 {[%clk 0:00:04]}  Be7 {[%clk 0:00:03]} 71. Nf2 {[%clk 0:00:03]}  Bf5 {[%clk 0:00:04]} 72. Nd1+ {[%clk 0:00:03]}  Kd2 {[%clk 0:00:04]} 73. Nf2 {[%clk 0:00:04]}  Ke3 {[%clk 0:00:04]} 74. Nd1+ {[%clk 0:00:04]}  Kd4 {[%clk 0:00:04]} 75. Nf2 {[%clk 0:00:05]}  Bb4 {[%clk 0:00:03]} 76. Nh3 {[%clk 0:00:05]}  Be1 {[%clk 0:00:04]} 77. Nf4 {[%clk 0:00:05]}  Ke3 {[%clk 0:00:04]} 78. Nxh5 {[%clk 0:00:06]}  gxh5 {[%clk 0:00:02]} 79. Bxh5 {[%clk 0:00:06]}  Be4+ {[%clk 0:00:03]} 80. Kh3 {[%clk 0:00:06]}  Kf2 {[%clk 0:00:03]} 81. Kg4 {[%clk 0:00:07]}  Bf3+ {[%clk 0:00:02]} 82. Kg5 {[%clk 0:00:07]}  Bd2+ {[%clk 0:00:03]} 83. Kg6 {[%clk 0:00:07]}  Be4+ {[%clk 0:00:03]} 84. Kf6 {[%clk 0:00:07]}  Kxg3 {[%clk 0:00:03]} 85. Ke5 {[%clk 0:00:08]}  Bb7 {[%clk 0:00:03]} 86. Bf7 {[%clk 0:00:08]}  Bf4+ {[%clk 0:00:03]} 87. Ke6 {[%clk 0:00:08]}  Kg4 {[%clk 0:00:03]} 88. Kd7 {[%clk 0:00:08]}  Ba6 {[%clk 0:00:03]} 89. Bd5 {[%clk 0:00:08]}  Bh6 {[%clk 0:00:03]} 90. Kc7 {[%clk 0:00:08]}  Kf5 {[%clk 0:00:03]} 91. Kb6 {[%clk 0:00:08]}  Bd3 {[%clk 0:00:03]} 92. Ka7 {[%clk 0:00:08]}  Ke5 {[%clk 0:00:03]} 93. Bh1 {[%clk 0:00:08]}  Kd6 {[%clk 0:00:04]} 94. Ka8 {[%clk 0:00:08]}  Kc7 {[%clk 0:00:05]} 95. h5 {[%clk 0:00:09]}  Ba6 {[%clk 0:00:04]} 96. Bg2 {[%clk 0:00:09]}  Bc8 {[%clk 0:00:04]} 97. Bh1 {[%clk 0:00:09]}  Bd7 {[%clk 0:00:04]} 98. Bg2 {[%clk 0:00:09]}  Bb5 {[%clk 0:00:04]} 99. Bh1 {[%clk 0:00:10]}  Bf1 {[%clk 0:00:05]} 100. Bf3 {[%clk 0:00:10]}  Be3 {[%clk 0:00:05]} 101. Bh1 {[%clk 0:00:10]}  Be2 {[%clk 0:00:05]} 102. h6 {[%clk 0:00:10]}  Bxh6 {[%clk 0:00:05]} 103. Bg2 {[%clk 0:00:11]}  Bd3 {[%clk 0:00:05]} 104. Bh1 {[%clk 0:00:11]}  Kd6 {[%clk 0:00:06]} 105. Bg2 {[%clk 0:00:12]}  Bc4 {[%clk 0:00:06]} 106. Bh1 {[%clk 0:00:12]}  Kc5 {[%clk 0:00:07]} 107. Bg2 {[%clk 0:00:12]}  Kd4 {[%clk 0:00:08]} 108. Bh1 {[%clk 0:00:13]}  Bf4 {[%clk 0:00:09]} 109. Bg2 {[%clk 0:00:13]}  Ke3 {[%clk 0:00:10]} 110. Bh1 {[%clk 0:00:13]}  Kf2 {[%clk 0:00:11]} 111. Bb7 {[%clk 0:00:13]}  Be3 {[%clk 0:00:11]} 112. Bc6 {[%clk 0:00:13]}  Bd3 {[%clk 0:00:12]} 113. Bb7 {[%clk 0:00:14]}  Bb5 {[%clk 0:00:12]} 114. Bd5 {[%clk 0:00:14]}  Bf4 {[%clk 0:00:12]} 115. Bb7 {[%clk 0:00:15]}  Bf1 {[%clk 0:00:12]} 116. Bd5 {[%clk 0:00:15]}  Bh3 {[%clk 0:00:13]} 117. Bb7 {[%clk 0:00:15]}  Bg2 {[%clk 0:00:14]} 118. Bxg2 {[%clk 0:00:14]} 1/2-1/2


[Site "https://www.chess.com"]

[Event "Titled Tuesday Blitz February 22 Early 2022"]
[White "Novikov, Evgenij"]
[Black "Atakhan, Abtin"]
[WhiteFideId "4125380"]
[BlackFideId "22502203"]
[WhiteElo "2242"]
[BlackElo "2119"]
[Result "0-1"]
[Round "10"]
[TimeControl "180+1"]
[Date "2022.02.22"]
[WhiteClock "0:00:07"]
[BlackClock "0:00:12"]

1. d4 {[%clk 0:03:00]}  d5 {[%clk 0:02:53]} 2. c4 {[%clk 0:02:54]}  c6 {[%clk 0:02:53]} 3. Nf3 {[%clk 0:02:50]}  Nf6 {[%clk 0:02:53]} 4. Nc3 {[%clk 0:02:43]}  a6 {[%clk 0:02:52]} 5. e3 {[%clk 0:02:40]}  Bf5 {[%clk 0:02:49]} 6. Bd3 {[%clk 0:02:38]}  Bg6 {[%clk 0:02:44]} 7. Ne5 {[%clk 0:02:34]}  Bxd3 {[%clk 0:02:39]} 8. Qxd3 {[%clk 0:02:34]}  e6 {[%clk 0:02:38]} 9. O-O {[%clk 0:02:20]}  Bb4 {[%clk 0:02:38]} 10. a3 {[%clk 0:02:02]}  Ba5 {[%clk 0:02:36]} 11. f4 {[%clk 0:01:20]}  Bxc3 {[%clk 0:02:33]} 12. bxc3 {[%clk 0:01:20]}  O-O {[%clk 0:02:29]} 13. a4 {[%clk 0:01:19]}  Nbd7 {[%clk 0:02:18]} 14. Ba3 {[%clk 0:01:18]}  Re8 {[%clk 0:02:18]} 15. Rab1 {[%clk 0:01:15]}  Qc7 {[%clk 0:02:10]} 16. g4 {[%clk 0:01:08]}  b5 {[%clk 0:02:01]} 17. g5 {[%clk 0:00:47]}  bxc4 {[%clk 0:01:34]} 18. Qc2 {[%clk 0:00:47]}  Ne4 {[%clk 0:01:29]} 19. Nxc4 {[%clk 0:00:45]}  c5 {[%clk 0:01:24]} 20. dxc5 {[%clk 0:00:33]}  Ndxc5 {[%clk 0:01:08]} 21. Ne5 {[%clk 0:00:33]}  Rab8 {[%clk 0:01:00]} 22. c4 {[%clk 0:00:27]}  Nd7 {[%clk 0:00:41]} 23. Nxd7 {[%clk 0:00:21]}  Qxd7 {[%clk 0:00:41]} 24. cxd5 {[%clk 0:00:21]}  exd5 {[%clk 0:00:40]} 25. Rxb8 {[%clk 0:00:19]}  Rxb8 {[%clk 0:00:41]} 26. Qg2 {[%clk 0:00:10]}  Qxa4 {[%clk 0:00:39]} 27. Bc1 {[%clk 0:00:06]}  Qc4 {[%clk 0:00:34]} 28. f5 {[%clk 0:00:06]}  Rb1 {[%clk 0:00:34]} 29. Ba3 {[%clk 0:00:03]}  Rxf1+ {[%clk 0:00:29]} 30. Qxf1 {[%clk 0:00:04]}  Qxf1+ {[%clk 0:00:20]} 31. Kxf1 {[%clk 0:00:05]}  f6 {[%clk 0:00:19]} 32. gxf6 {[%clk 0:00:05]}  gxf6 {[%clk 0:00:19]} 33. Ke2 {[%clk 0:00:05]}  Kf7 {[%clk 0:00:19]} 34. Kd3 {[%clk 0:00:05]}  Ng5 {[%clk 0:00:11]} 35. Bc5 {[%clk 0:00:02]}  Nf3 {[%clk 0:00:10]} 36. h3 {[%clk 0:00:02]}  Nh4 {[%clk 0:00:09]} 37. Kd4 {[%clk 0:00:02]}  Nxf5+ {[%clk 0:00:08]} 38. Kxd5 {[%clk 0:00:03]}  Ne7+ {[%clk 0:00:08]} 39. Kd6 {[%clk 0:00:02]}  Ng6 {[%clk 0:00:07]} 40. e4 {[%clk 0:00:02]}  Nf4 {[%clk 0:00:06]} 41. h4 {[%clk 0:00:02]}  h5 {[%clk 0:00:06]} 42. e5 {[%clk 0:00:02]}  fxe5 {[%clk 0:00:06]} 43. Kxe5 {[%clk 0:00:03]}  Nd3+ {[%clk 0:00:06]} 44. Kd4 {[%clk 0:00:02]}  Nxc5 {[%clk 0:00:07]} 45. Kxc5 {[%clk 0:00:03]}  Kf6 {[%clk 0:00:07]} 46. Kb6 {[%clk 0:00:03]}  Kf5 {[%clk 0:00:08]} 47. Kxa6 {[%clk 0:00:04]}  Kg4 {[%clk 0:00:09]} 48. Kb5 {[%clk 0:00:04]}  Kxh4 {[%clk 0:00:10]} 49. Kc4 {[%clk 0:00:05]}  Kg3 {[%clk 0:00:11]} 50. Kd3 {[%clk 0:00:06]}  h4 {[%clk 0:00:12]} 51. Ke2 {[%clk 0:00:07]}  Kg2 {[%clk 0:00:12]} 52. Ke3 {[%clk 0:00:07]}  h3 {[%clk 0:00:12]} 0-1


[Site "https://www.chess.com"]

[Event "Titled Tuesday Blitz February 22 Early 2022"]
[White "Osiecki, Stanislaw"]
[Black "Dwilewicz, Katarzyna"]
[WhiteFideId "1102990"]
[BlackFideId "1148486"]
[WhiteElo "2127"]
[BlackElo "1907"]
[Result "1-0"]
[Round "10"]
[TimeControl "180+1"]
[Date "2022.02.22"]
[WhiteClock "0:00:26"]
[BlackClock "0:00:07"]

1. e4 {[%clk 0:02:59]}  e5 {[%clk 0:02:58]} 2. Nf3 {[%clk 0:02:57]}  Nc6 {[%clk 0:02:58]} 3. Bb5 {[%clk 0:02:51]}  a6 {[%clk 0:02:58]} 4. Bxc6 {[%clk 0:02:51]}  dxc6 {[%clk 0:02:57]} 5. O-O {[%clk 0:02:52]}  f6 {[%clk 0:02:56]} 6. d4 {[%clk 0:02:51]}  exd4 {[%clk 0:02:56]} 7. Nxd4 {[%clk 0:02:51]}  c5 {[%clk 0:02:56]} 8. Nb3 {[%clk 0:02:51]}  Qxd1 {[%clk 0:02:57]} 9. Rxd1 {[%clk 0:02:51]}  b6 {[%clk 0:02:52]} 10. Bf4 {[%clk 0:02:50]}  Ra7 {[%clk 0:02:45]} 11. Nc3 {[%clk 0:02:49]}  Be6 {[%clk 0:02:43]} 12. Nd5 {[%clk 0:02:48]}  Bxd5 {[%clk 0:02:42]} 13. exd5 {[%clk 0:02:48]}  Kd7 {[%clk 0:02:41]} 14. c4 {[%clk 0:02:46]}  Bd6 {[%clk 0:02:41]} 15. Bxd6 {[%clk 0:02:43]}  cxd6 {[%clk 0:02:42]} 16. Re1 {[%clk 0:02:42]}  Nh6 {[%clk 0:02:37]} 17. h3 {[%clk 0:02:40]}  Raa8 {[%clk 0:02:34]} 18. Re2 {[%clk 0:02:38]}  Rhe8 {[%clk 0:02:29]} 19. Rae1 {[%clk 0:02:35]}  Nf7 {[%clk 0:02:28]} 20. f4 {[%clk 0:02:33]}  b5 {[%clk 0:02:23]} 21. Nd2 {[%clk 0:02:30]}  Rab8 {[%clk 0:02:21]} 22. b3 {[%clk 0:02:29]}  h5 {[%clk 0:01:49]} 23. Kf2 {[%clk 0:02:28]}  bxc4 {[%clk 0:01:43]} 24. Nxc4 {[%clk 0:02:25]}  Nh6 {[%clk 0:01:37]} 25. Na5 {[%clk 0:02:17]}  Nf5 {[%clk 0:01:34]} 26. Nc6 {[%clk 0:02:15]}  Rxe2+ {[%clk 0:01:16]} 27. Rxe2 {[%clk 0:02:12]}  Re8 {[%clk 0:01:14]} 28. Rxe8 {[%clk 0:02:03]}  Kxe8 {[%clk 0:01:15]} 29. Nb8 {[%clk 0:01:42]}  Ne7 {[%clk 0:01:11]} 30. Nxa6 {[%clk 0:01:42]}  Nxd5 {[%clk 0:01:11]} 31. Kf3 {[%clk 0:01:39]}  Kd7 {[%clk 0:01:09]} 32. Ke4 {[%clk 0:01:02]}  Nc3+ {[%clk 0:01:08]} 33. Kf5 {[%clk 0:01:03]}  Kc6 {[%clk 0:00:55]} 34. b4 {[%clk 0:00:59]}  Kb7 {[%clk 0:00:42]} 35. bxc5 {[%clk 0:00:55]}  Kxa6 {[%clk 0:00:21]} 36. cxd6 {[%clk 0:00:55]}  Kb6 {[%clk 0:00:20]} 37. Ke6 {[%clk 0:00:53]}  Kc6 {[%clk 0:00:07]} 38. d7 {[%clk 0:00:43]}  Kc7 {[%clk 0:00:07]} 39. Ke7 {[%clk 0:00:30]}  Nd5+ {[%clk 0:00:07]} 40. Ke8 {[%clk 0:00:26]} 1-0


[Site "https://www.chess.com"]